fUST/lending_fUST_20260212
["ID","MTS","AMOUNT","RATE_DAILY","PERIOD"]
[405128892,1770873038952,-350.0,0.00024534,8]
[405128894,1770873038962,-350.0,0.00024534,8]
[405128896,1770873038971,-350.0,0.00024534,8]
[405128898,1770873038981,-379.0,0.00024534,8]
[405128899,1770873038990,-350.0,0.00024534,8]
[405128901,1770873039000,-350.0,0.00024534,8]
[405128903,1770873039009,-350.0,0.00024534,8]
[405128905,1770873039018,-437.0,0.00024534,8]
[405128907,1770873039028,-350.0,0.00024534,8]
[405128909,1770873039037,-350.0,0.00024534,8]
[405128911,1770873039047,-291.0,0.00024534,8]
[405128913,1770873039057,-500.0,0.00024537,2]
[405128915,1770873039067,-221.01840211,0.00024551,2]
[405128917,1770873039076,-403.00843366,0.00024551,2]
[405128919,1770873039087,-333.71625995,0.00024551,2]
[405128921,1770873039096,-245.95099979,0.00024551,2]
[405128923,1770873039107,-1455.0,0.0002464,3]
[405128925,1770873039116,-500.0,0.00024649,2]
[405128927,1770873039126,-579.69382568,0.00024649,2]
[405128929,1770873039135,-20658.51822278,0.0002465,2]
[405128931,1770873039146,-150.0,0.00024658,2]
[405128933,1770873039156,-200.0,0.00024658,2]
[405128935,1770873039165,-342.2334345,0.00024658,2]
[405128937,1770873039174,-655.57925439,0.00024676,2]
[405128939,1770873039184,-2364.66,0.000247,14]
[405128941,1770873039194,-250.0,0.0002473,2]
[405128943,1770873039205,-4585.38224133,0.00024774,2]
[405128945,1770873039214,-500.0,0.00024787,2]
[405128947,1770873039223,-1739.97523113,0.00024793,3]
[405128949,1770873039232,-4050.94846029,0.000248,2]
[405128951,1770873039242,-248.72313599,0.00024831,2]
[405128953,1770873039252,-442.71179962,0.00024876,2]
[405128955,1770873039261,-11360.3953667,0.000249,2]
[405128957,1770873039271,-704.7337805,0.00024932,2]
[405128959,1770873039280,-11360.3953667,0.0002498,2]
[405128961,1770873039290,-151.0,0.0002499,2]
[405128963,1770873039299,-56895.0853473,0.0002499,2]
[405128966,1770873039312,-1345.66381064,0.0002499,2]
[405129011,1770873039790,-314.76130666,0.00023976,10]
[405129019,1770873043878,-484.19212185,0.00023976,10]
[405129020,1770873044621,-41.95834871,0.00023976,10]
[405129026,1770873045616,-5113.22894221,0.00023976,10]
[405129028,1770873150789,168.98474853,0.0002352,2]
[405129029,1770873158711,218.4685409,0.0002352,2]
[405129130,1770873676052,133000.0,0.00030137,120]
[405129145,1770873745353,778.234763,0.00023306,2]
[405129152,1770873936142,2926.9359717,0.00022808,2]
[405129153,1770873952096,-1982.35408247,0.00023672,2]
[405129162,1770874047078,-1841.464904,0.00023672,2]
[405129166,1770874106607,827.11769633,0.00015,2]
[405129251,1770874231843,-204.60721156,0.00023672,2]
[405129550,1770874237885,-1320.17003347,0.00023672,2]
[405129551,1770874237895,-792.0,0.00023672,2]
[405129552,1770874237905,-200.01103174,0.0002368,2]
[405129554,1770874237914,-1000.0,0.00023706,30]
[405129556,1770874237923,-1200.0,0.00023725,2]
[405129558,1770874237933,-300.0,0.00023726,2]
[405129559,1770874237943,-300.0,0.00023726,2]
[405129561,1770874237952,-300.0,0.00023726,2]
[405129562,1770874237962,-300.0,0.00023726,2]
[405129563,1770874237972,-300.0,0.00023726,2]
[405129564,1770874237983,-2396.96093592,0.00023727,2]
[405129565,1770874237994,-237.53882875,0.00023727,2]
[405129566,1770874238004,-1824.16955513,0.00023764,2]
[405129567,1770874238013,-7132.54,0.00023845,10]
[405129568,1770874238023,-500.0,0.00023854,2]
[405129569,1770874238032,-50000.0,0.00023854,2]
[405129570,1770874238042,-500.0,0.00023854,2]
[405129571,1770874238053,-500.0,0.00023854,2]
[405129572,1770874238063,-500.0,0.00023854,2]
[405129573,1770874238073,-500.0,0.00023854,2]
[405129574,1770874238082,-500.0,0.00023854,2]
[405129575,1770874238092,-500.0,0.00023854,2]
[405129576,1770874238102,-500.0,0.00023854,2]
[405129577,1770874238111,-500.0,0.00023854,2]
[405129578,1770874238121,-500.0,0.00023854,2]
[405129579,1770874238131,-500.0,0.00023854,2]
[405129580,1770874238140,-500.0,0.00023854,2]
[405129581,1770874238149,-500.0,0.00023854,2]
[405129582,1770874238160,-500.0,0.00023854,2]
[405129583,1770874238169,-500.0,0.00023854,2]
[405129584,1770874238179,-226.83815751,0.00023854,2]
[405129585,1770874238189,-347.38834181,0.00023854,2]
[405129586,1770874238199,-500.0,0.00023854,2]
[405129587,1770874238209,-500.0,0.00023854,2]
[405129588,1770874238219,-500.0,0.00023854,2]
[405129589,1770874238229,-500.0,0.00023854,2]
[405129590,1770874238239,-500.0,0.00023854,2]
[405129591,1770874238249,-500.0,0.00023854,2]
[405129592,1770874238259,-500.0,0.00023854,2]
[405129593,1770874238269,-500.0,0.00023854,2]
[405129594,1770874238279,-500.0,0.00023854,2]
[405129595,1770874238289,-500.0,0.00023854,2]
[405129596,1770874238300,-500.0,0.00023854,2]
[405129597,1770874238311,-500.0,0.00023854,2]
[405129598,1770874238322,-500.0,0.00023854,2]
[405129599,1770874238332,-500.0,0.00023854,2]
[405129600,1770874238341,-500.0,0.00023854,2]
[405129601,1770874238351,-589.45600515,0.00023854,2]
[405129602,1770874238361,-500.0,0.00023854,2]
[405129603,1770874238371,-500.0,0.00023854,2]
[405129604,1770874238381,-500.0,0.00023854,2]
[405129605,1770874238390,-500.0,0.00023854,2]
[405129606,1770874238400,-500.0,0.00023854,2]
[405129607,1770874238409,-500.0,0.00023854,2]
[405129608,1770874238419,-500.0,0.00023854,2]
[405129609,1770874238429,-500.0,0.00023854,2]
[405129610,1770874238439,-500.0,0.00023854,2]
[405129611,1770874238449,-500.0,0.00023854,2]
[405129612,1770874238459,-500.0,0.00023854,2]
[405129613,1770874238468,-500.0,0.00023854,2]
[405129614,1770874238478,-500.0,0.00023854,2]
[405129615,1770874238488,-500.0,0.00023854,2]
[405129616,1770874238498,-500.0,0.00023854,2]
[405129617,1770874238507,-500.0,0.00023854,2]
[405129618,1770874238516,-500.0,0.00023854,2]
[405129619,1770874238526,-500.0,0.00023854,2]
[405129620,1770874238536,-500.0,0.00023854,2]
[405129621,1770874238545,-560.75049033,0.00023854,2]
[405129622,1770874238555,-500.0,0.00023854,2]
[405129623,1770874238565,-500.0,0.00023854,2]
[405129624,1770874238575,-500.0,0.00023854,2]
[405129625,1770874238585,-500.0,0.00023854,2]
[405129626,1770874238595,-500.0,0.00023854,2]
[405129627,1770874238605,-500.0,0.00023854,2]
[405129628,1770874238614,-500.0,0.00023854,2]
[405129629,1770874238624,-500.0,0.00023854,2]
[405129630,1770874238634,-500.0,0.00023854,2]
[405129631,1770874238644,-500.0,0.00023854,2]
[405129632,1770874238654,-327.22908246,0.00023854,2]
[405129633,1770874238664,-500.0,0.00023854,2]
[405129634,1770874238674,-500.0,0.00023854,2]
[405129635,1770874238684,-500.0,0.00023854,2]
[405129636,1770874238694,-500.0,0.00023854,2]
[405129637,1770874238704,-500.0,0.00023854,2]
[405129638,1770874238714,-500.0,0.00023854,2]
[405129639,1770874238724,-500.0,0.00023854,2]
[405129640,1770874238734,-500.0,0.00023854,2]
[405129641,1770874238744,-8559.05,0.00023855,10]
[405129642,1770874238754,-411.60896259,0.00023862,2]
[405129643,1770874238764,-23220.6945831,0.00023865,2]
[405129644,1770874238774,-288.7453964,0.00023995,2]
[405129645,1770874238783,-34288.54223857,0.00024,2]
[405129646,1770874238792,-1743.21910208,0.00024,2]
[405129647,1770874238802,-467.58960116,0.00024,2]
[405129648,1770874238812,-398.66,0.00024,14]
[405129649,1770874238822,-151.0,0.00024,2]
[405129650,1770874238832,-859.59590802,0.00024027,3]
[405129651,1770874238843,-6267.76362897,0.00024118,2]
[405129652,1770874238852,-500.0,0.00024128,2]
[405129653,1770874238862,-2136.40059978,0.00024142,2]
[405129654,1770874238872,-787.04319933,0.00024242,2]
[405129655,1770874238882,-447.70164479,0.00024365,2]
[405129656,1770874238892,-795.91403518,0.00024365,2]
[405129657,1770874238902,-196.16289452,0.00024365,2]
[405129658,1770874238912,-500.0,0.00024402,2]
[405129659,1770874238922,-1150.0,0.00024444,8]
[405129660,1770874238932,-1150.0,0.00024444,8]
[405129661,1770874238941,-1150.0,0.00024444,8]
[405129662,1770874238951,-1150.0,0.00024444,8]
[405129663,1770874238961,-1150.0,0.00024444,8]
[405129664,1770874238970,-1150.0,0.00024444,8]
[405129665,1770874238981,-1040.0,0.00024444,8]
[405129666,1770874238992,-1150.0,0.00024444,8]
[405129667,1770874239002,-1150.0,0.00024444,8]
[405129668,1770874239013,-1150.0,0.00024444,8]
[405129669,1770874239023,-1150.0,0.00024444,8]
[405129670,1770874239033,-164.0,0.00024444,8]
[405129671,1770874239042,-1600.0,0.00024444,8]
[405129672,1770874239053,-1576.0,0.00024444,8]
[405129673,1770874239064,-2000.0,0.00024566,2]
[405129674,1770874239074,-2000.0,0.00024566,2]
[405129675,1770874239083,-2000.0,0.00024566,2]
[405129676,1770874239093,-2000.0,0.00024566,2]
[405129677,1770874239103,-2000.0,0.00024566,2]
[405129678,1770874239112,-2000.0,0.00024566,2]
[405129679,1770874239122,-2000.0,0.00024566,2]
[405129680,1770874239131,-2000.0,0.00024566,2]
[405129681,1770874239140,-2000.0,0.00024566,2]
[405129682,1770874239150,-2000.0,0.00024566,2]
[405129683,1770874239160,-2000.0,0.00024566,2]
[405129684,1770874239170,-2000.0,0.00024566,2]
[405129685,1770874239180,-2000.0,0.00024566,2]
[405129686,1770874239258,-2000.0,0.00024566,2]
[405129687,1770874239269,-2000.0,0.00024566,2]
[405129688,1770874239278,-2000.0,0.00024566,2]
[405129689,1770874239288,-474.15859886,0.00024575,3]
[405129690,1770874239297,-479.50288378,0.00024575,3]
[405129691,1770874239307,-250.0,0.00024635,2]
[405129692,1770874239317,-170.8169302,0.00024635,2]
[405129693,1770874239326,-500.0,0.00024635,2]
[405129694,1770874239335,-250.0,0.00024635,2]
[405129695,1770874239344,-250.0,0.00024635,2]
[405129696,1770874239354,-500.0,0.00024635,2]
[405129697,1770874239364,-262.46808292,0.00024635,2]
[405129698,1770874239373,-250.0,0.00024635,2]
[405129699,1770874239384,-500.0,0.00024635,2]
[405129700,1770874239393,-326.03778922,0.00024635,2]
[405129701,1770874239403,-500.0,0.00024635,2]
[405129702,1770874239413,-500.0,0.00024635,2]
[405129703,1770874239423,-280.772226,0.00024635,2]
[405129704,1770874239433,-500.0,0.00024635,2]
[405129705,1770874239443,-500.0,0.00024635,2]
[405129706,1770874239452,-250.0,0.00024635,2]
[405129707,1770874239461,-500.0,0.00024635,2]
[405129708,1770874239471,-250.0,0.00024635,2]
[405129709,1770874239480,-500.0,0.00024635,2]
[405129710,1770874239490,-500.0,0.00024635,2]
[405129711,1770874239499,-250.0,0.00024635,2]
[405129712,1770874239508,-500.0,0.00024635,2]
[405129713,1770874239518,-267.47454519,0.00024635,2]
[405129714,1770874239527,-500.0,0.00024635,2]
[405129716,1770874239537,-500.0,0.00024635,2]
[405129717,1770874239546,-500.0,0.00024635,2]
[405129718,1770874239556,-500.0,0.00024635,2]
[405129719,1770874239565,-500.0,0.00024635,2]
[405129720,1770874239574,-209.40437687,0.00024635,2]
[405129721,1770874239584,-521.2716098,0.00024635,2]
[405129722,1770874239593,-250.0,0.00024635,2]
[405129723,1770874239603,-250.0,0.00024635,2]
[405129724,1770874239613,-250.0,0.00024635,2]
[405129725,1770874239624,-250.0,0.00024635,2]
[405129726,1770874239633,-250.0,0.00024635,2]
[405129727,1770874239643,-250.0,0.00024635,2]
[405129728,1770874239652,-250.0,0.00024635,2]
[405129729,1770874239661,-4291.88717786,0.0002465,2]
[405129740,1770874239995,-5943.78,0.00024556,10]
[405129742,1770874240004,-250.0,0.00024635,2]
[405129744,1770874240014,-250.0,0.00024635,2]
[405129746,1770874240025,-250.0,0.00024635,2]
[405129748,1770874240035,-250.0,0.00024635,2]
[405129750,1770874240044,-7116.03972154,0.0002465,2]
[405129776,1770874245914,-250.0,0.00024635,2]
[405129777,1770874245926,-250.0,0.00024635,2]
[405129778,1770874245939,-225.54003136,0.00024635,2]
[405129784,1770874252730,-430.99262344,0.00023854,2]
[405129791,1770874275268,233.23211675,0.0002352,2]
[405129793,1770874319497,-69.00737656,0.00023854,2]
[405129794,1770874319525,-500.0,0.00023854,2]
[405129795,1770874319552,-500.0,0.00023854,2]
[405129796,1770874319579,-500.0,0.00023864,2]
[405129797,1770874319612,-216.41081111,0.00024245,2]
[405129798,1770874319638,-61.85187467,0.00024635,2]
[405129799,1770874319665,-300.0,0.00024649,2]
[405129800,1770874319688,-69.00737656,0.0002465,2]
[405129801,1770874319700,-500.0,0.0002465,2]
[405129802,1770874319712,-500.0,0.0002465,2]
[405129803,1770874319723,-500.0,0.0002465,2]
[405129804,1770874319738,-216.41081111,0.0002465,2]
[405129805,1770874319753,-61.85187467,0.0002465,2]
[405129806,1770874319763,-300.0,0.0002465,2]
[405129807,1770874319778,-3321.82449975,0.0002465,2]
[405129824,1770874607954,3088.22,0.00030137,120]
[405129831,1770874731887,1976.0,0.00030137,120]
[405129840,1770875158118,-500.0,0.00023862,2]
[405129841,1770875158141,-500.0,0.00023862,2]
[405129842,1770875158164,-500.0,0.00023862,2]
[405129843,1770875158188,-215.08259488,0.00023862,2]
[405129844,1770875158212,-432.02857838,0.00023863,2]
[405129849,1770875419437,4012.7512768,0.00022918,2]
[405129878,1770875431997,-502.43964545,0.00023862,2]
[405129880,1770875432008,-480.0,0.00023862,2]
[405129882,1770875432018,-67.97142162,0.00023863,2]
[405129884,1770875432028,-300.0,0.00023863,2]
[405129886,1770875432037,-300.0,0.00023863,2]
[405129888,1770875432047,-300.0,0.00023863,2]
[405129891,1770875432056,-300.0,0.00023863,2]
[405129892,1770875432065,-1200.0,0.00023863,2]
[405129894,1770875432075,-210.78094299,0.00023864,2]
[405129897,1770875432084,-500.0,0.00023864,2]
[405129899,1770875432093,-362.79275183,0.00023864,2]
[405130262,1770875438007,-243.79056186,0.00023864,2]
[405130263,1770875438017,-1120.33674096,0.00023864,2]
[405130265,1770875438175,-148.60305671,0.00023864,2]
[405130266,1770875438185,-6949.7571488,0.00023864,2]
[405130267,1770875438195,-1887.08805013,0.00023875,2]
[405130268,1770875438204,-3137.36,0.00023956,10]
[405130269,1770875438214,-483.29973437,0.00023962,2]
[405130270,1770875438224,-2000.0,0.00023963,2]
[405130271,1770875438234,-2000.0,0.00023963,2]
[405130272,1770875438244,-2000.0,0.00023963,2]
[405130273,1770875438254,-2000.0,0.00023963,2]
[405130274,1770875438264,-2000.0,0.00023963,2]
[405130275,1770875438273,-2000.0,0.00023963,2]
[405130276,1770875438283,-2000.0,0.00023963,2]
[405130277,1770875438293,-2000.0,0.00023963,2]
[405130278,1770875438303,-2000.0,0.00023963,2]
[405130279,1770875438313,-2000.0,0.00023963,2]
[405130280,1770875438322,-2000.0,0.00023963,2]
[405130281,1770875438333,-2000.0,0.00023963,2]
[405130282,1770875438345,-2000.0,0.00023963,2]
[405130283,1770875438355,-2000.0,0.00023963,2]
[405130284,1770875438365,-2000.0,0.00023963,2]
[405130285,1770875438375,-2000.0,0.00023963,2]
[405130286,1770875438385,-2612.16,0.00023965,10]
[405130287,1770875438395,-4517.79,0.00023965,10]
[405130288,1770875438404,-3764.83,0.00023965,10]
[405130289,1770875438416,-50000.0,0.00023966,2]
[405130290,1770875438426,-300.0,0.00023975,2]
[405130291,1770875438436,-500.0,0.00023989,2]
[405130292,1770875438446,-500.0,0.00023989,2]
[405130293,1770875438455,-500.0,0.00023989,2]
[405130294,1770875438465,-500.0,0.00023989,2]
[405130295,1770875438474,-259.04613723,0.00023989,2]
[405130296,1770875438484,-151.0,0.0002399,2]
[405130297,1770875438493,-8281.19834226,0.0002399,2]
[405130306,1770875440152,-3e-08,0.0002398,3]
[405130567,1770875443609,-1454.99999997,0.0002398,3]
[405130569,1770875443618,-91718.80165774,0.0002399,2]
[405130571,1770875443627,-11164.10302191,0.00024,30]
[405130573,1770875443637,-879.48076356,0.0002422,3]
[405130575,1770875443646,-5653.1613955,0.00024538,2]
[405130577,1770875443656,-176.76390955,0.00024627,3]
[405130579,1770875443665,-239.91868768,0.00024627,3]
[405130581,1770875443674,-226.8729647,0.00024627,3]
[405130583,1770875443684,-352.74011693,0.00024635,2]
[405130585,1770875443694,-348.0783764,0.00024635,2]
[405130587,1770875443704,-318.86533936,0.00024635,2]
[405130589,1770875443714,-397.40605488,0.00024635,2]
[405130591,1770875443722,-151.0,0.00024635,2]
[405130593,1770875443733,-364.05311316,0.00024635,2]
[405130595,1770875443742,-211.94795978,0.00024635,2]
[405130597,1770875443752,-381.50632761,0.00024635,2]
[405130599,1770875443761,-169.58458298,0.00024635,2]
[405130601,1770875443770,-171.39310273,0.00024635,2]
[405130603,1770875443779,-250.0,0.00024635,2]
[405130605,1770875443788,-250.0,0.00024635,2]
[405130607,1770875443797,-250.0,0.00024635,2]
[405130609,1770875443807,-326.03778922,0.00024635,2]
[405130611,1770875443816,-170.8169302,0.00024635,2]
[405130613,1770875443826,-500.0,0.00024635,2]
[405130615,1770875443835,-500.0,0.00024635,2]
[405130617,1770875443844,-250.0,0.00024635,2]
[405130619,1770875443855,-209.40437687,0.00024635,2]
[405130621,1770875443864,-500.0,0.00024635,2]
[405130623,1770875443875,-500.0,0.00024635,2]
[405130625,1770875443884,-250.0,0.00024635,2]
[405130627,1770875443894,-500.0,0.00024635,2]
[405130629,1770875443905,-500.0,0.00024635,2]
[405130631,1770875443914,-250.0,0.00024635,2]
[405130633,1770875443924,-500.0,0.00024635,2]
[405130635,1770875443933,-500.0,0.00024635,2]
[405130637,1770875443943,-267.47454519,0.00024635,2]
[405130639,1770875443952,-500.0,0.00024635,2]
[405130641,1770875443962,-500.0,0.00024635,2]
[405130651,1770875444038,-500.0,0.00024635,2]
[405130654,1770875444054,-500.0,0.00024635,2]
[405130656,1770875444063,-500.0,0.00024635,2]
[405130658,1770875444072,-280.772226,0.00024635,2]
[405130659,1770875444081,-500.0,0.00024635,2]
[405130662,1770875444095,-500.0,0.00024635,2]
[405130664,1770875444105,-500.0,0.00024635,2]
[405130666,1770875444114,-250.0,0.00024635,2]
[405130668,1770875444124,-521.2716098,0.00024635,2]
[405130670,1770875444134,-250.0,0.00024635,2]
[405130672,1770875444143,-250.0,0.00024635,2]
[405130674,1770875444152,-262.46808292,0.00024635,2]
[405130675,1770875444161,-7590.82855778,0.0002465,2]
[405130867,1770875446024,-500.0,0.00024625,3]
[405130869,1770875446035,-250.0,0.00024635,2]
[405130871,1770875446044,-22460.26929821,0.0002465,2]
[405130874,1770875446056,-7735.485685,0.0002465,2]
[405140737,1770875611581,704.7337805,0.00023308,2]
[405140738,1770875666727,1999.64489224,0.0002352,2]
[405140739,1770875805102,288.7453964,0.00023441,2]
[405140740,1770876011606,502.04867201,0.00013699,2]
[405140745,1770876309400,692.0894114,0.00023427,2]
[405140746,1770876347117,-152.62979237,0.00023716,2]
[405140747,1770876347149,-500.0,0.00023815,2]
[405140748,1770876347181,-380.17771461,0.00023815,2]
[405140749,1770876347214,-214.86847067,0.00023889,2]
[405140750,1770876347251,-908.52662243,0.00024072,3]
[405140751,1770876347302,-679.54018381,0.000245,2]
[405140761,1770876632142,-205.451008,0.00023537,2]
[405140762,1770876632152,-210.57110126,0.00023714,2]
[405140763,1770876632162,-877.32190692,0.0002389,3]
[405140764,1770876632172,-300.0,0.00024498,2]
[405140765,1770876632189,-97.25764617,0.00024498,2]
[405140898,1770876638216,-500.0,0.00024,2]
[405140900,1770876638226,-202.74235383,0.00024498,2]
[405140901,1770876638235,-300.0,0.00024498,2]
[405140903,1770876638246,-300.0,0.00024498,2]
[405140905,1770876638256,-300.0,0.00024498,2]
[405140907,1770876638266,-1200.0,0.00024498,2]
[405140920,1770876638402,-338.30981406,0.00024498,2]
[405140922,1770876638413,-500.0,0.00024499,2]
[405140924,1770876638423,-256.57631,0.00024499,2]
[405141576,1770876646236,-243.42369,0.00024499,2]
[405141578,1770876646246,-500.0,0.00024499,2]
[405141581,1770876646256,-500.0,0.00024499,2]
[405141583,1770876646266,-500.0,0.00024499,2]
[405141585,1770876646276,-500.0,0.00024499,2]
[405141587,1770876646285,-500.0,0.00024499,2]
[405141589,1770876646295,-500.0,0.00024499,2]
[405141591,1770876646305,-567.84842341,0.00024499,2]
[405141593,1770876646315,-500.0,0.00024499,2]
[405141595,1770876646324,-500.0,0.00024499,2]
[405141597,1770876646334,-500.0,0.00024499,2]
[405141599,1770876646343,-500.0,0.00024499,2]
[405141601,1770876646353,-295.4715319,0.00024499,2]
[405141603,1770876646363,-500.0,0.00024499,2]
[405141605,1770876646372,-500.0,0.00024499,2]
[405141607,1770876646383,-500.0,0.00024499,2]
[405141609,1770876646392,-500.0,0.00024499,2]
[405141611,1770876646403,-500.0,0.00024499,2]
[405141613,1770876646413,-500.0,0.00024499,2]
[405141615,1770876646422,-500.0,0.00024499,2]
[405141617,1770876646432,-500.0,0.00024499,2]
[405141619,1770876646442,-500.0,0.00024499,2]
[405141621,1770876646451,-500.0,0.00024499,2]
[405141623,1770876646462,-500.0,0.00024499,2]
[405141625,1770876646471,-500.0,0.00024499,2]
[405141627,1770876646481,-500.0,0.00024499,2]
[405141629,1770876646491,-500.0,0.00024499,2]
[405141631,1770876646500,-500.0,0.00024499,2]
[405141633,1770876646509,-500.0,0.00024499,2]
[405141635,1770876646519,-500.0,0.00024499,2]
[405141637,1770876646528,-500.0,0.00024499,2]
[405141639,1770876646537,-500.0,0.00024499,2]
[405141641,1770876646547,-500.0,0.00024499,2]
[405141643,1770876646556,-500.0,0.00024499,2]
[405141645,1770876646566,-500.0,0.00024499,2]
[405141647,1770876646576,-500.0,0.00024499,2]
[405141649,1770876646586,-500.0,0.00024499,2]
[405141651,1770876646595,-500.0,0.00024499,2]
[405141653,1770876646605,-500.0,0.00024499,2]
[405141655,1770876646615,-500.0,0.00024499,2]
[405141657,1770876646624,-500.0,0.00024499,2]
[405141659,1770876646634,-500.0,0.00024499,2]
[405141661,1770876646644,-500.0,0.00024499,2]
[405141663,1770876646654,-265.67462239,0.00024499,2]
[405141665,1770876646663,-500.0,0.00024499,2]
[405141667,1770876646672,-500.0,0.00024499,2]
[405141669,1770876646682,-500.0,0.00024499,2]
[405141671,1770876646691,-500.0,0.00024499,2]
[405141673,1770876646700,-500.0,0.00024499,2]
[405141675,1770876646710,-500.0,0.00024499,2]
[405141676,1770876646719,-500.0,0.00024499,2]
[405141679,1770876646731,-500.0,0.00024499,2]
[405141681,1770876646741,-500.0,0.00024499,2]
[405141682,1770876646750,-500.0,0.00024499,2]
[405141685,1770876646760,-500.0,0.00024499,2]
[405141686,1770876646770,-500.0,0.00024499,2]
[405141688,1770876646779,-500.0,0.00024499,2]
[405141690,1770876646788,-378.88990163,0.00024499,2]
[405141692,1770876646798,-500.0,0.00024499,2]
[405141695,1770876646810,-500.0,0.00024499,2]
[405141697,1770876646821,-437.53206373,0.00024499,2]
[405141699,1770876646832,-1976.44084194,0.000245,2]
[405141720,1770876647032,-315.08253154,0.000245,2]
[405142060,1770876650886,2000.0,0.0002352,2]
[405147618,1770877011645,-263.16121658,0.00024164,2]
[405147619,1770877011668,-221.59967923,0.00024286,2]
[405147620,1770877011693,-1367.07,0.0002449,10]
[405147621,1770877011716,-300.0,0.00024496,2]
[405147622,1770877011738,-300.0,0.00024497,2]
[405147623,1770877011760,-300.0,0.00024497,2]
[405147624,1770877011782,-300.0,0.00024497,2]
[405147625,1770877011804,-1200.0,0.00024497,2]
[405147626,1770877011825,-300.0,0.00024497,2]
[405147627,1770877011850,-50000.0,0.00024497,2]
[405147628,1770877011968,-2000.0,0.00024497,2]
[405147629,1770877011992,-2000.0,0.00024497,2]
[405147630,1770877012015,-2000.0,0.00024497,2]
[405147631,1770877012050,-2000.0,0.00024497,2]
[405147632,1770877012078,-2000.0,0.00024497,2]
[405147633,1770877012102,-250.0,0.00024497,2]
[405147634,1770877012127,-2000.0,0.00024497,2]
[405147635,1770877012151,-250.0,0.00024497,2]
[405147636,1770877012175,-2000.0,0.00024497,2]
[405147637,1770877012200,-250.0,0.00024497,2]
[405147638,1770877012224,-2000.0,0.00024497,2]
[405147639,1770877012249,-250.0,0.00024497,2]
[405147640,1770877012273,-2000.0,0.00024497,2]
[405147641,1770877012296,-2000.0,0.00024497,2]
[405147642,1770877012319,-2000.0,0.00024497,2]
[405147643,1770877012347,-2000.0,0.00024497,2]
[405147644,1770877012370,-2000.0,0.00024497,2]
[405147645,1770877012394,-2000.0,0.00024497,2]
[405147646,1770877012418,-2000.0,0.00024497,2]
[405147647,1770877012441,-2000.0,0.00024497,2]
[405147648,1770877012466,-3088.5448352,0.00024499,2]
[405147649,1770877012490,-1542.8451403,0.00024499,2]
[405147650,1770877012513,-11564.93644271,0.000245,2]
[405147651,1770877012538,-500.0,0.00024511,2]
[405147652,1770877012562,-500.0,0.00024511,2]
[405147653,1770877012584,-500.0,0.00024511,2]
[405147654,1770877012608,-156.766,0.00024519,2]
[405147655,1770877012632,-500.0,0.0002452,2]
[405147656,1770877012656,-500.0,0.0002452,2]
[405147657,1770877012681,-602.45844016,0.0002452,2]
[405147658,1770877012706,-775.68551399,0.00024526,3]
[405147659,1770877012732,-500.0,0.00024535,2]
[405147660,1770877012756,-500.0,0.00024535,2]
[405147661,1770877012778,-500.0,0.00024536,2]
[405147662,1770877012802,-500.0,0.00024536,2]
[405147663,1770877012825,-195.75384966,0.00024627,3]
[405147664,1770877012850,-358.04044524,0.00024627,3]
[405147665,1770877012875,-421.35192633,0.00024628,3]
[405147666,1770877012899,-500.0,0.00024632,2]